Cogmind - Beta 17.1 @@@ ROGUE MODE // 2026.09.17 @ 16:59:49 Player: MOPO3 Result: Destroyed by P-80 Master with Gamma Rifle Performance ------------- Evolutions (7) 3500 Regions Visited (12) 2400 Robots Destroyed (39) 195 Value Destroyed (980) 980 Prototype IDs (36) 720 Alien Tech Used (1) 200 Bonus (3220) 3220 TOTAL SCORE: 11215 Bonus ------- Follower Combat Kills 228 Entered DSFs 500 Registered with UFD 300 Met Optimus in HQ 500 Acquired SGEMP 2000 Friendly Fire -308 Cogmind --------- Core Integrity 0/1300 Matter 136/300 Energy 100/100 System Corruption 14% Temperature Cool (0) Movement Core (50) Location -3/Testing Parts ------- > --- POWER (2) -------- (None) > --- PROPULSION (6) --- (None) > --- UTILITY (11) ----- Melee Analysis Suite Hacking Suite > --- WEAPON (2) ------- (None) > --- INVENTORY (5) ---- Improved Plasma Cutter SGEMP Prototype Peak State ------------ > --- POWER ------------ Light Antimatter Reactor Light Antimatter Reactor > --- PROPULSION ------- Improved Surge Thruster Improved Surge Thruster Field Propulsion Drive Field Propulsion Drive Field Propulsion Drive Impulse Thruster > --- UTILITY ---------- Advanced Heat Sink Advanced Heat Sink Melee Analysis Suite Improved Transmission Jammer Advanced ECM Suite Hacking Suite Advanced Hacking Suite System Shield Improved System Shield Amulet of Y3-NDR > --- WEAPON ----------- Advanced Variable Charge Gun Carbide Saw > --- INVENTORY -------- Micro Antimatter Reactor Micro Antimatter Reactor Field Propulsion Array Compact Mass Driver [Rating: 113] Favorites ----------- Power Light Ion Engine Engine Light Ion Engine Power Core Nuclear Core Reactor Light Antimatter Reactor Propulsion Compact Wheel Treads Light Treads Wheel Compact Wheel Hover Unit Improved Airjet Flight Unit Xenon Bombardment Thruster Utility Small Storage Unit Device V3-11A's Pendant Storage Small Storage Unit Processor Melee Analysis Suite Hackware Hacking Suite Protection Improved Light Armor Plating Weapon Subdweller Shrapnel Launcher Energy Gun EM Pulse Gun Energy Cannon Compact HERF Cannon Ballistic Gun Light Assault Rifle Ballistic Cannon Advanced Assault Cannon Launcher Subdweller Shrapnel Launcher Special Weapon Mining Laser Impact Weapon Maul Slashing Weapon Companion Sword Special Melee Weapon Improved Datajack Build | -11 -10 -10 -9 -9 -6 -6 -5 -4 -4 -4 -3 -3 ------- Run | Yrd Mat Sub Rec Scr Fac DSF Fac Fac Upp Upp Res Tes Slots Evolved 14 | . . . . . 8 . 2 2 . . 2 . Power 1 | . . . . . . . 1 . . . . . Propulsion 4 | . . . . . 2 . 1 1 . . . . Utility 9 | . . . . . 6 . . 1 . . 2 . Weapon . | . . . . . . . . . . . . . Parts Attached 111 | 7 4 9 2 7 5 6 20 9 7 5 21 9 Power 15 | 1 1 1 . 1 . . 3 1 1 1 5 . Engine 4 | 1 1 1 . . . . . . . 1 . . Core 7 | . . . . 1 . . 3 1 1 . 1 . Reactor 4 | . . . . . . . . . . . 4 . Propulsion 28 | 2 . 3 . 2 1 3 7 2 . 1 6 1 Treads 2 | 2 . . . . . . . . . . . . Leg . | . . . . . . . . . . . . . Wheel 7 | . . 3 . 2 1 . . 1 . . . . Hover 1 | . . . . . . . 1 . . . . . Flight 18 | . . . . . . 3 6 1 . 1 6 1 Utility 41 | 2 . 1 1 2 4 3 6 6 2 3 9 2 Device 20 | 1 . 1 . 1 3 1 3 2 1 3 3 1 Storage 7 | 1 . . 1 1 . . . 1 . . 2 1 Processor 2 | . . . . . . . 1 . . . 1 . Hackware 4 | . . . . . . . 1 1 . . 2 . Protection 8 | . . . . . 1 2 1 2 1 . 1 . Artifact . | . . . . . . . . . . . . . Weapon 27 | 2 3 4 1 2 . . 4 . 4 . 1 6 Energy Gun 3 | 1 1 . . . . . . . . . . 1 Energy Cannon 1 | . . . . . . . . . . . . 1 Ballistic Gun 3 | 1 1 1 . . . . . . . . . . Ballistic Cannon 3 | . . . . . . . 2 . 1 . . . Launcher 5 | . . 2 . . . . 1 . . . . 2 Special Weapon 4 | . 1 . . 1 . . 1 . . . . 1 Impact Weapon 3 | . . . 1 . . . . . 1 . . 1 Slashing Weapon 4 | . . 1 . 1 . . . . 1 . 1 . Piercing Weapon . | . . . . . . . . . . . . . Special Melee Weapon 1 | . . . . . . . . . 1 . . . Unidentified Prototypes 15 | . . 1 . 2 . . 2 . 2 1 2 5 Corrupted Parts 1 | . . . . . . . . . . 1 . . System Corruption 4 | . . . . . . . . . . 4 . . Parts Lost 46 | . . . . . . 6 14 4 2 . 1 19 Power 8 | . . . . . . 1 2 1 . . 1 3 Propulsion 15 | . . . . . . 2 6 1 . . . 6 Utility 17 | . . . . . . 3 5 2 . . . 7 Weapon 6 | . . . . . . . 1 . 2 . . 3 Highest Loss Streak 14 | . . . . . . 4 13 3 1 . 1 14 To Critical Strikes 1 | . . . . . . . 1 . . . . . Average Backups 9 | 5 7 7 9 12 10 11 13 6 4 4 4 3 Power . | . 1 . . . . . . . . 1 1 1 Propulsion 2 | 1 2 . 1 3 4 4 5 . . . . . Utility 2 | . 1 1 3 4 . 1 2 4 3 2 2 . Weapon 3 | 1 3 4 3 3 4 5 4 1 . . . 1 Tool/Special . | . . . . . . . . . . . . . Unused Backups 16 | . 1 3 . 4 . . 3 2 . . 1 2 Power 1 | . . . . . . . . . . . 1 . Propulsion 1 | . . . . . . . . . . . . 1 Utility 7 | . . 2 . 2 . . 1 2 . . . . Weapon 7 | . 1 1 . 2 . . 2 . . . . 1 Tool/Special . | . . . . . . . . . . . . . Average Slot Usage (%) 86 | . 99 100 98 89 71 79 83 44 21 33 45 70 Engine 7 | . 13 14 14 3 . . . . . . . . Core 3 | . . . . 10 6 3 5 3 . . . . Treads 5 | . 27 11 . . . . . . . . . . Wheel 16 | . . 17 28 28 20 18 4 1 . . . . Flight 3 | . . . . . . 1 20 10 5 7 15 19 Device 11 | . 14 14 14 6 18 18 16 6 . 9 8 15 Storage 12 | . 14 14 14 17 13 13 10 4 . . . . Hackware 1 | . . . . . . . 2 8 10 10 10 17 Energy Gun 1 | . 11 1 . . . 4 . . . . . . Ballistic Gun 3 | . 14 8 . . . . . . . . . . Launcher 5 | . . 6 13 9 . . . . . . . . Special Weapon 4 | . 2 9 . 3 2 . . . . . . 1 Impact Weapon 3 | . . . 10 7 . . . . . 5 2 1 Slashing Weapon 1 | . . 2 2 1 3 6 4 3 1 . 1 1 Peak Build Rating 113 | 7 8 14 14 26 45 50 77 56 31 38 112 113 Average Rating 21 | 5 7 10 12 16 41 44 62 36 19 31 52 82 On Entrance 27 | . 7 8 14 9 26 40 50 29 15 24 34 105 Avg Prop Armor Cover (%) 6 | . . . . . . 2 7 4 . . 8 . Naked Turns . | . . . . . . . . . . . . . Heaviest Build 66 | 13 13 20 35 46 61 57 66 25 6 13 34 36 Greatest Support 40 | 40 40 40 26 28 36 36 20 26 7 11 38 37 Greatest Overweight (x) 5 | 2 . . 1 1 1 3 5 1 . 1 1 2 Average Overweight (x) . | . . . . . 1 1 3 . . . . . Largest Inventory Capacity 15 | 8 8 8 15 15 15 15 15 8 5 5 5 5 Average Capacity 10 | 7 8 8 13 15 15 15 14 7 5 5 5 5 Most Carried 15 | 6 8 8 14 15 14 14 15 8 5 5 5 5 Average Carried 9 | 5 7 7 10 13 10 12 14 6 4 4 4 4 Final Capacity 15 | 8 8 8 15 15 15 15 8 5 5 5 5 5 Final Carried 15 | 6 8 8 14 15 11 14 4 5 5 5 5 3 Scrap Suit Usage (%) 4 | . . . . . 99 87 25 . . . . . Parts Cannibalized 8 | . . . . . 1 3 4 . . . . . Class Distribution -------------------- 87% | Mutant 10% | Hacker-Mutant Dominant Class ---------------- Mutant | -10/Materials Mutant | -10/Subcaves Mutant | -9/Recycling Mutant | -9/Scraptown Mutant | -6/Factory Mutant | -6/DSF Mutant | -5/Factory Hacker-Mutant | -4/Factory Hacker-Mutant | -4/Upper Caves Hacker-Mutant | -4/Upper Caves Hacker-Mutant | -3/Research Hacker-Sprinter | -3/Testing Resources | -11 -10 -10 -9 -9 -6 -6 -5 -4 -4 -4 -3 -3 ----------- Run | Yrd Mat Sub Rec Scr Fac DSF Fac Fac Upp Upp Res Tes Matter Collected 1914 | 374 147 212 101 126 . 70 327 . 90 191 265 11 Remotely . | . . . . . . . . . . . . . Salvage Created 1672 | 331 295 50 42 . . 72 613 . 79 50 107 33 Parts 80 | 26 13 2 5 . . 5 21 . 3 1 1 3 Haulers Intercepted . | . . . . . . . . . . . . . Recyclers Shooed 3 | . . . . . . . 2 . . . . 1 Parts Field Recycled . | . . . . . . . . . . . . . Retrieved Matter . | . . . . . . . . . . . . . Parts Self-Destructed 14 | . . 11 . . . . . . . 3 . . Prevented 5 | . . . . . . . . . . 5 . . Parts Restored . | . . . . . . . . . . . . . Kills | -11 -10 -10 -9 -9 -6 -6 -5 -4 -4 -4 -3 -3 ------- Run | Yrd Mat Sub Rec Scr Fac DSF Fac Fac Upp Upp Res Tes Combat Hostiles Destroyed 16 | . 6 3 1 . . 1 3 . . . 1 1 Melee 1 | . . . . . . 1 . . . . . . Guns 5 | . 5 . . . . . . . . . . . Cannons 3 | . . . . . . . 3 . . . . . AOE 6 | . 1 3 1 . . . . . . . . 1 Classes Destroyed 14 | 3 2 2 . . . 1 2 . 1 1 1 1 Worker 4 | 4 . . . . . . . . . . . . Builder 2 | . . . . . . . 2 . . . . . Tunneler 7 | 7 . . . . . . . . . . . . Recycler 5 | 1 . . . . . . 4 . . . . . Minesweeper 1 | . . . . . . . . . . 1 . . Mechanic 1 | . . . . . . . . . . . . 1 Operator 1 | . . . . . . . . . . . 1 . Watcher 1 | . 1 . . . . . . . . . . . Swarmer 3 | . . 1 . . . . 2 . . . . . Grunt 7 | . 6 1 . . . . . . . . . . Sentry 2 | . . 1 1 . . . . . . . . . Specialist 1 | . . . . . . 1 . . . . . . Programmer 3 | . . . . . . . 1 . . . 1 1 Decomposer 1 | . . . . . . . . . . 1 . . Savage 1 | . . . . . . . . . 1 . . . Best Kill Streak 9 | 2 3 3 1 . . 1 9 . . 1 2 2 Combat Bots Only 3 | . 2 3 1 . . 1 3 . . . 1 1 Max Kills in Single Turn 2 | 1 1 2 1 . . 1 1 . 1 1 1 1 Gunslinging . | . . . . . . . . . . . . . Exploded 2 | . 1 2 1 . . . . . . . . 1 Melee 1 | . . . . . . 1 . . . . . . Uniques/NPCs Destroyed . | . . . . . . . . . . . . . Combat | -11 -10 -10 -9 -9 -6 -6 -5 -4 -4 -4 -3 -3 -------- Run | Yrd Mat Sub Rec Scr Fac DSF Fac Fac Upp Upp Res Tes Hostile Shots Fired 624 | . 29 8 2 . . 194 150 74 33 7 4 123 Missed 217 | . 7 1 2 . . 63 32 42 18 5 1 46 Hits 407 | . 22 7 . . . 131 118 32 15 2 3 77 Melee 16 | . . . . . . 5 . . . . . 11 Projectile 391 | . 22 7 . . . 126 118 32 15 2 3 66 AOE 2 | . . . . . . . . 1 . . 1 . Critical Strikes 19 | . . . . . . 1 6 . . . . 12 Part Disruptions 3 | . . . . . . 3 . . . . . . Damage Taken 7102 | 16 323 170 . . . 1426 1511 733 319 28 148 2428 Core 2192 | . 43 37 . . . 215 171 303 73 28 57 1265 Absorbed by Shields 407 | . . . . . . 93 314 . . . . . Regen/Repaired (Parts) 55 | . . . . . 2 20 33 . . . . . Core Remaining (%) 77 | 100 . . . 68 . 74 82 . . 64 . . Volleys Fired 116 | 23 25 39 3 . . 2 16 . 1 . . 7 Largest 2 | 2 2 2 1 . . 1 2 . 1 . . 1 Hottest 120 | 60 120 100 40 . . 63 87 . 40 . . 52 Shots Fired 175 | 46 46 42 3 . . 2 29 . 1 . . 6 Gun 93 | 46 42 3 . . . 2 . . . . . . Cannon 27 | . . . . . . . 26 . 1 . . . Launcher 13 | . . 2 3 . . . 3 . . . . 5 Special 42 | . 4 37 . . . . . . . . . 1 Kinetic 82 | 23 24 5 3 . . . 26 . 1 . . . Thermal 53 | . 13 37 . . . 2 . . . . . 1 Explosive 5 | . . . . . . . . . . . . 5 Electromagnetic 35 | 23 9 . . . . . 3 . . . . . Robot Hit Streak 11 | 4 11 2 . . . . 4 . 1 . . . Robot Miss Streak 3 | 2 2 . . . . 2 3 . . . . 1 Penetration Max 1 | . . . . . . . 1 . . . . . Secondary Targets . | . . . . . . . . . . . . . Shots Hit Robots 94 | 26 29 1 . . 1 4 23 . 5 2 3 . Core Hits 56 | 12 14 5 3 . . 1 8 . 2 1 . 10 Critical Kills . | . . . . . . . . . . . . . Critical Parts Destroyed . | . . . . . . . . . . . . . Critical Strikes 4 | 1 . . . . . . 3 . . . . . Blast 3 | . . . . . . . 3 . . . . . Corrupt 1 | 1 . . . . . . . . . . . . Melee Attacks 47 | . . 5 . . 4 6 10 9 5 2 3 3 Impact 6 | . . . . . . . . . . 2 3 1 Slashing 41 | . . 5 . . 4 6 10 9 5 . . 2 Piercing . | . . . . . . . . . . . . . Sneak Attacks 14 | . . . . . 1 . 4 . 4 2 3 . Combat Hostiles . | . . . . . . . . . . . . . Follow-up Attacks . | . . . . . . . . . . . . . Damage Inflicted 3975 | 357 419 246 57 . 70 151 1164 . 234 172 350 755 Guns 668 | 334 327 7 . . . . . . . . . . Cannons 719 | . . . . . . . 693 . 26 . . . Explosions 1187 | 23 84 239 57 . . . 29 . . . . 755 Melee 1390 | . . . . . 70 150 440 . 208 172 350 . Ramming 11 | . 8 . . . . 1 2 . . . . . Kinetic 1308 | 138 148 246 57 . . . 693 . 26 . . . Thermal 163 | 23 140 . . . . . . . . . . . Explosive 755 | . . . . . . . . . . . . 755 Electromagnetic 348 | 196 123 . . . . . 29 . . . . . Impact 522 | . . . . . . . . . . 172 350 . Slashing 868 | . . . . . 70 150 440 . 208 . . . Piercing . | . . . . . . . . . . . . . Highest Corruption 14 | . 1 1 2 2 . 2 4 4 4 8 . 14 Average Corruption 1 | . 1 1 1 2 . 1 1 2 4 6 . 7 Corruption Purged . | . . . . . . . . . . . . . Corruption Blocked . | . . . . . . . . . . . . . Effects 56 | . . 21 8 4 . 1 1 3 6 7 . 5 Message Errors 9 | . . 5 1 1 . . . . 1 1 . . Matter Fused 18 | . . 4 4 1 . . . . 2 4 . 3 Heat Flow Errors 8 | . . 5 1 . . . . . 1 1 . . Energy Discharges 8 | . . 3 2 . . . . 1 . 1 . 1 Parts Rejected 1 | . . . . . . . . . 1 . . . Parts Fused 2 | . . . . 1 . . 1 . . . . . Data Loss (minor) 5 | . . 3 . 1 . . . 1 . . . . Data Loss (major) 2 | . . . . . . 1 . . 1 . . . Misfires 1 | . . 1 . . . . . . . . . . Alerts 1 | . . . . . . . . 1 . . . . Weapon Failures 1 | . . . . . . . . . . . . 1 Overload Shots . | . . . . . . . . . . . . . Overflow Damage 527 | . . . . . 30 . 158 . . 47 204 88 Projectiles 32 | . . . . . . . 32 . . . . . Explosions 88 | . . . . . . . . . . . . 88 Melee 407 | . . . . . 30 . 126 . . 47 204 . Knockbacks 16 | . . . . . . . 13 . . 1 2 . Impact 3 | . . . . . . . . . . 1 2 . Kinetic 11 | . . . . . . . 11 . . . . . Secondary 2 | . . . . . . . 2 . . . . . Self-Inflicted Damage 156 | 16 52 . . . . . 1 . . . . 87 Shots 3 | 1 1 . . . . . . . . . . 1 Rammed 3 | . 1 . . . . 1 1 . . . . . Targets Rammed 3 | . 1 . . . . 1 1 . . . . . Kicked . | . . . . . . . . . . . . . Crushed . | . . . . . . . . . . . . . Highest Temperature 294 | 12 148 214 103 . . . 294 . 258 99 2 . Average Temperature 86 | 12 51 83 53 . . . 144 . 142 65 1 . Received Heat Transfer 703 | . 153 21 . . . 269 134 69 57 . . . Siege Activations . | . . . . . . . . . . . . . Martial Activations . | . . . . . . . . . . . . . Shielding Activations . | . . . . . . . . . . . . . Robots Disrupted . | . . . . . . . . . . . . . Combat Hostiles . | . . . . . . . . . . . . . Robots Corrupted 3 | . . . . . . . 1 . . 1 1 . Combat Hostiles 1 | . . . . . . . . . . . 1 . Parts Fried 10 | . 1 . . . . . 2 . . 2 5 . Impact Corruptions 8 | . . . . . . . 1 . . 2 5 . Robots Melted . | . . . . . . . . . . . . . Combat Hostiles . | . . . . . . . . . . . . . Parts Melted . | . . . . . . . . . . . . . Heat Transferred 175 | . 175 . . . . . . . . . . . Parts Sabotaged . | . . . . . . . . . . . . . Parts Stolen . | . . . . . . . . . . . . . Parts Stripped . | . . . . . . . . . . . . . Power Chain Reactions 2 | 1 1 . . . . . . . . . . . Alert | -11 -10 -10 -9 -9 -6 -6 -5 -4 -4 -4 -3 -3 ------- Run | Yrd Mat Sub Rec Scr Fac DSF Fac Fac Upp Upp Res Tes Maximum Alert Level . | . . . . . . . . . . . . . Low Security (%) 100 | 100 100 . 100 . 100 100 100 100 . . 100 100 Level 1 . | . . . . . . . . . . . . . Level 2 . | . . . . . . . . . . . . . Level 3 . | . . . . . . . . . . . . . Level 4 . | . . . . . . . . . . . . . Level 5 . | . . . . . . . . . . . . . High Security . | . . . . . . . . . . . . . Max Security . | . . . . . . . . . . . . . Peak Influence 184 | 10 77 . 110 . 5 35 83 60 . . 160 184 Initial 67 | . . . . . . . . 7 . . 3 67 Average 25 | 1 20 . 37 . . 13 2 9 . . 88 111 Influence Increases 1704 | 60 195 72 295 . 6 57 145 95 60 155 230 334 Destroy 0b10 Robot/C 540 | . 120 60 60 . . 40 60 . . 80 100 20 Destroy 0b10 Robot/NC 110 | 60 5 . . . . . 30 . . 5 5 5 Destroy Leader 82 | . 32 . . . . . . . . 10 30 10 Allied During Kill 57 | . . 12 8 . . 2 . . . . 35 . Successful Hack 171 | . . . 56 . 5 . 13 4 . . 21 72 Select Force Hacks 90 | . . . 90 . . . . . . . . . Disable Machine 105 | . 30 . 30 . . . 15 . . . . 30 Destroy Structure 294 | . 8 . 51 . 1 . 12 16 . . 24 182 Partial Spotted 15 | . . . . . . . . . . . . 15 Lose Combat Pursuer 240 | . . . . . . 15 15 75 60 60 15 . Influence Decreases 1593 | 60 195 72 282 13 6 57 130 80 90 150 115 343 Entered New Map 88 | . . . . 13 . . . 8 12 . 2 53 Time Decay 1102 | 60 195 72 242 . 6 . 43 51 70 150 113 100 Lost Part 341 | . . . . . . 35 87 21 8 . . 190 Lost Ally 62 | . . . 40 . . 22 . . . . . . Squads Dispatched 10 | . 1 . . . . 1 2 1 . . 4 1 Investigation 1 | . 1 . . . . . . . . . . . Extermination 2 | . . . . . . . 1 . . . 1 . Reinforcement 7 | . . . . . . 1 1 1 . . 3 1 Assault . | . . . . . . . . . . . . . Garrison . | . . . . . . . . . . . . . Intercept . | . . . . . . . . . . . . . Searches Triggered . | . . . . . . . . . . . . . Construction Impeded 1 | . . . . . . . 1 . . . . . Haulers Reinforced . | . . . . . . . . . . . . . Active Scanning Responses . | . . . . . . . . . . . . . Cargo Convoy Interrupts . | . . . . . . . . . . . . . Stealth | -11 -10 -10 -9 -9 -6 -6 -5 -4 -4 -4 -3 -3 --------- Run | Yrd Mat Sub Rec Scr Fac DSF Fac Fac Upp Upp Res Tes Distress Signals 6 | . 1 . . . . . 2 2 . . . 1 Communications Jammed . | . . . . . . . . . . . . . Distress Signals . | . . . . . . . . . . . . . Times Spotted 100 | . 12 6 2 . . 11 19 21 8 4 9 8 Peak Tracking Total 13 | . 3 3 1 . . 9 9 13 5 4 4 6 Tactical Retreats 9 | . . . . . . 1 1 3 2 1 1 . Traps | -11 -10 -10 -9 -9 -6 -6 -5 -4 -4 -4 -3 -3 ------- Run | Yrd Mat Sub Rec Scr Fac DSF Fac Fac Upp Upp Res Tes Traps Triggered 7 | . 3 1 . . . 1 . 2 . . . . Indirectly . | . . . . . . . . . . . . . Trap Hack Attempts . | . . . . . . . . . . . . . Triggered . | . . . . . . . . . . . . . Disarmed . | . . . . . . . . . . . . . Reprogrammed . | . . . . . . . . . . . . . Reused . | . . . . . . . . . . . . . Traps Extracted . | . . . . . . . . . . . . . Installed . | . . . . . . . . . . . . . Triggered . | . . . . . . . . . . . . . Machines | -11 -10 -10 -9 -9 -6 -6 -5 -4 -4 -4 -3 -3 ---------- Run | Yrd Mat Sub Rec Scr Fac DSF Fac Fac Upp Upp Res Tes Machines Disabled 9 | . 2 1 2 . . . 1 . 1 . . 2 Max in Single Turn 2 | . 1 1 2 . . . 1 . 1 . . 1 Machines Repaired . | . . . . . . . . . . . . . Machines Dismantled . | . . . . . . . . . . . . . Machines Sabotaged . | . . . . . . . . . . . . . Overloaded Fab Kills . | . . . . . . . . . . . . . Hacking | -11 -10 -10 -9 -9 -6 -6 -5 -4 -4 -4 -3 -3 --------- Run | Yrd Mat Sub Rec Scr Fac DSF Fac Fac Upp Upp Res Tes Machines Accessed 48 | . 1 2 12 6 3 . 6 2 4 . 3 9 Terminals 21 | . 1 . 5 . 1 . 4 1 1 . 2 6 Fabricators . | . . . . . . . . . . . . . Repair Stations 3 | . . . . . 1 . 1 . . . . 1 Recycling Units 8 | . . . 5 . 1 . . 1 . . 1 . Scanalyzers 3 | . . . . . . . 1 . . . . 2 Garrison Access . | . . . . . . . . . . . . . Total Hacks 188 | . 4 13 60 46 7 . 11 5 4 . 8 30 Successful 140 | . 3 13 45 46 3 . 3 3 4 . 3 17 Failed 47 | . 1 . 15 . 4 . 8 2 . . 5 12 Catastrophic 11 | . . . 3 . 1 . 1 . . . 1 5 Database Lockouts 1 | . . . . . . . . . . . . 1 Manual 43 | . 4 . 17 . . . 5 2 1 . 4 10 Terminals 62 | . 4 . 22 . 3 . 8 2 1 . 5 17 Fabricators . | . . . . . . . . . . . . . Repair Stations 6 | . . . . . 1 . 2 . . . . 3 Recycling Units 23 | . . . 14 . 3 . . 3 . . 3 . Scanalyzers 11 | . . . . . . . 1 . . . . 10 Garrison Access . | . . . . . . . . . . . . . Terminal Hacks 102 | . . 13 30 46 1 . 1 . 4 . 1 6 Record 87 | . . 12 25 45 . . . . 2 . . 3 Part Schematic 5 | . . . 3 . . . . . . . . 2 Prototype ID Bank 1 | . . . 1 . . . . . . . . . Open Door 4 | . . . . 1 . . . . 2 . . 1 Open DSF 3 | . . . . . 1 . 1 . . . 1 . Investigation Status 1 | . . . 1 . . . . . . . . . Proto ID Catalog 1 | . . 1 . . . . . . . . . . Fabricator Hacks . | . . . . . . . . . . . . . Repair Station Hacks 4 | . . . . . . . 1 . . . . 3 Scan Component 2 | . . . . . . . 1 . . . . 1 Repair 1 | . . . . . . . . . . . . 1 Refit 1 | . . . . . . . . . . . . 1 Recycling Unit Hacks 10 | . . . 5 . 2 . . 2 . . 1 . Report Inventory 4 | . . . 4 . . . . . . . . . Retrieve Matter 1 | . . . . . 1 . . . . . . . Retrieve Components 5 | . . . 1 . 1 . . 2 . . 1 . Scanalyzer 4 | . . . . . . . . . . . . 4 Insert Component 2 | . . . . . . . . . . . . 2 Analyze 2 | . . . . . . . . . . . . 2 Garrison Access Hacks . | . . . . . . . . . . . . . Unauthorized Hacks 18 | . 3 . 8 . . . 1 1 . . 1 4 Terminals 15 | . 3 . 5 . . . 1 1 . . 1 4 Assimilate 1 | . 1 . . . . . . . . . . . Botnet 13 | . 1 . 5 . . . 1 1 . . 1 4 Skim 1 | . 1 . . . . . . . . . . . Fabricators . | . . . . . . . . . . . . . Repair Stations . | . . . . . . . . . . . . . Recycling Units 3 | . . . 3 . . . . . . . . . Tunnel 3 | . . . 3 . . . . . . . . . Scanalyzers . | . . . . . . . . . . . . . Garrison Access . | . . . . . . . . . . . . . Data Cores Recovered . | . . . . . . . . . . . . . Used . | . . . . . . . . . . . . . Hacking Detections 25 | . 1 . 8 . 2 . 5 1 1 . 2 5 Full Trace Events 8 | . 1 . 7 . . . . . . . . . Feedback Events 1 | . . . 1 . . . . . . . . . Corruption 1 | . . . 1 . . . . . . . . . Feedback Blocked . | . . . . . . . . . . . . . Robot Schematics Acquired . | . . . . . . . . . . . . . Robots Built . | . . . . . . . . . . . . . Authchips . | . . . . . . . . . . . . . Time . | . . . . . . . . . . . . . Total Robot Build Rating . | . . . . . . . . . . . . . Part Schematics Acquired 6 | . . . 3 . . . . . . . . 3 Parts Built . | . . . . . . . . . . . . . Authchips . | . . . . . . . . . . . . . Time . | . . . . . . . . . . . . . Total Part Build Rating . | . . . . . . . . . . . . . Part Studies Acquired . | . . . . . . . . . . . . . Parts Repaired . | . . . . . . . . . . . . . Time 28 | . . . . . . . . . . . . 28 Parts Recycled . | . . . . . . . . . . . . . Recycled Matter . | . . . . . . . . . . . . . Retrieved Matter . | . . . . . . . . . . . . . Retrieved Components 4 | . . . 3 . . . . . . . 1 . Parts Scanalyzed 2 | . . . . . . . . . . . . 2 Part Schematics Acquired 1 | . . . . . . . . . . . . 1 Parts Damaged 1 | . . . . . . . . . . . . 1 Bothacking | -11 -10 -10 -9 -9 -6 -6 -5 -4 -4 -4 -3 -3 ------------ Run | Yrd Mat Sub Rec Scr Fac DSF Fac Fac Upp Upp Res Tes Used RIF Installer . | . . . . . . . . . . . . . Robots Hacked . | . . . . . . . . . . . . . Non-combat . | . . . . . . . . . . . . . Combat . | . . . . . . . . . . . . . Robot Hacks Applied . | . . . . . . . . . . . . . Relay Couplers Released . | . . . . . . . . . . . . . Fabnet Peak Effective % . | . . . . . . . . . . . . . Robots Rewired . | . . . . . . . . . . . . . Allies Hacked . | . . . . . . . . . . . . . Hacks Repelled . | . . . . . . . . . . . . . Allies | -11 -10 -10 -9 -9 -6 -6 -5 -4 -4 -4 -3 -3 -------- Run | Yrd Mat Sub Rec Scr Fac DSF Fac Fac Upp Upp Res Tes Total Allies 20 | . . 8 . . . . . . . 8 4 . Largest Group 6 | . . 6 4 2 2 2 . . . 3 5 . Highest-Rated Group 343 | . . 114 76 38 38 38 . . . 243 343 . Highest-Rated Ally 81 | . . 19 19 19 19 19 . . . 81 81 . Initial UFD Resources 30 | . . . . . 24 24 26 28 28 28 30 30 Total Orders . | . . . . . . . . . . . . . Ally Attacks 80 | . . 8 4 . . 10 . . . 11 47 . Total Damage 1525 | . . 166 88 . . 121 . . . 489 661 . Kills 12 | . . 1 2 . . 1 . . . 4 4 . Allies Corrupted . | . . . . . . . . . . . . . Allies Melted . | . . . . . . . . . . . . . Intel | -11 -10 -10 -9 -9 -6 -6 -5 -4 -4 -4 -3 -3 ------- Run | Yrd Mat Sub Rec Scr Fac DSF Fac Fac Upp Upp Res Tes Active Infowar (turns) 2422 | 25 627 66 . 1056 141 93 325 3 . 22 64 . Optics 1056 | . . . . 1056 . . . . . . . . Structural 559 | . . . . . 141 93 325 . . . . . Seismic 718 | 25 627 66 . . . . . . . . . . Jamming 23 | . . . . . . . . . . 20 3 . ECM 67 | . . . . . . . . 3 . 2 62 . Robot Analysis Total . | . . . . . . . . . . . . . Derelict Logs Recovered 6 | . . 2 . 2 . . . . . 2 . . Drone Launches . | . . . . . . . . . . . . . Drone Recoveries . | . . . . . . . . . . . . . Exploration | -11 -10 -10 -9 -9 -6 -6 -5 -4 -4 -4 -3 -3 ------------- Run | Yrd Mat Sub Rec Scr Fac DSF Fac Fac Upp Upp Res Tes Turns Passed 9693 | 441 680 2788 709 2790 144 156 788 226 202 305 248 216 Spaces Moved 9084 | 226 204 2237 660 2657 101 114 481 461 442 659 377 465 Core 57 | 9 . . . . . . . . . . . 48 Treads 1072 | 217 204 651 . . . . . . . . . . Legs . | . . . . . . . . . . . . . Wheels 5583 | . . 1586 660 2657 101 114 465 . . . . . Hover . | . . . . . . . . . . . . . Flight 2372 | . . . . . . . 16 461 442 659 377 417 Fastest Speed 19 | 50 160 90 90 90 105 105 28 32 40 34 19 24 Average Speed 92 | 157 160 112 99 103 105 107 137 39 40 37 41 28 Slowest Speed 165 | 160 160 160 105 110 105 135 165 114 40 114 114 150 Overloaded Moves 2 | . . . . . . . . . . . 2 . Propulsion Burnouts . | . . . . . . . . . . . . . Robots Hopped 24 | . . . . . . . . 13 2 . 1 8 Potential Cave-ins . | . . . . . . . . . . . . . Cave-ins Triggered . | . . . . . . . . . . . . . Exploration Rate (%) 49 | 7 38 90 99 95 4 77 14 17 69 65 10 57 Regions Visited 12 Branch Regions 6 Pre-discovered Areas 8 | . . 1 3 3 . . . . . 1 . . Known Exits Taken 6 | . . 1 . 1 1 . 1 . 1 . 1 . Unknown Exits Taken 5 | 1 1 . 1 . . . . 1 . 1 . . Scrap Searched 11 | . . 3 . 5 . . . . 2 1 . . Spaces Dug 13 | . 1 . . . 1 . 2 9 . . . . Terrain Destroyed 205 | 2 7 4 56 . 1 . 6 9 . . . 120 Melee 12 | . . . . . 1 . 2 9 . . . . Projectile 7 | . 3 . . . . . 4 . . . . . AOE 186 | 2 4 4 56 . . . . . . . . 120 Terrain Rammed 1 | . 1 . . . . . . . . . . . Walls Destroyed . | . . . . . . . . . . . . . Machines Disabled . | . . . . . . . . . . . . . Actions | -11 -10 -10 -9 -9 -6 -6 -5 -4 -4 -4 -3 -3 --------- Run | Yrd Mat Sub Rec Scr Fac DSF Fac Fac Upp Upp Res Tes Total 10008 | 261 502 2383 710 2704 133 132 562 474 456 712 458 521 Wait 486 | . 256 70 34 10 21 . 7 . . 43 23 22 Move 9028 | 225 203 2236 659 2656 100 113 481 437 437 658 374 449 Hop 21 | . . . . . . . . 10 2 . 1 8 Pick Up 67 | 6 3 6 6 13 1 4 8 3 1 . 12 4 Fast Attach 76 | 7 9 4 1 3 . 5 7 9 6 3 14 8 Attach 38 | . . . . 5 6 1 12 . 2 2 6 4 Detach 11 | . . . 2 1 1 . . 1 1 3 2 . Swap 30 | . 3 9 1 3 . . 6 . . . 7 1 Drop 80 | . 1 13 4 13 . . 15 5 1 1 15 12 Fire 116 | 23 25 39 3 . . 2 16 . 1 . . 7 Melee 47 | . . 5 . . 4 6 10 9 5 2 3 3 Ram 2 | . 1 . . . . 1 . . . . . . Kick . | . . . . . . . . . . . . . Crush 1 | . 1 . . . . . . . . . . . Escape Stasis . | . . . . . . . . . . . . . Rewire 2 | . . 1 . . . . . . . . 1 . Trap . | . . . . . . . . . . . . . Miscellaneous 3 | . . . . . . . . . . . . 3 Route ------- -11/Scrapyard -10/Materials -10/Subcaves (discovered 4 exits: [*Mat x2] / *Rec / *Scr) -9/Recycling (discovered 2 exits: [*Fac] / *Scr) -9/Scraptown (discovered 2 exits: *Fac x2) -6/Factory (discovered 7 exits: Fac x4 / Low x2 / DSF) -6/DSF -5/Factory (discovered 3 exits: *Fac x2 / Ext) -4/Factory -4/Upper Caves -4/Upper Caves -3/Research (discovered 4 exits: Res / Arm / *Tes x2) -3/Testing History --------- Turn | Location | Event 35 | -11/Scrapyard | Discovered new exit (range 16) 442 | -11/Scrapyard | Entered Materials 443 | -10/Materials | Build established: Mutant 1110 | -10/Materials | Discovered new exit (range 8) 1122 | -10/Materials | Entered Subcaves 1123 | -10/Subcaves | Approached by a straggling Scientist 1178 | -10/Subcaves | Visited triangular shrine 1189 | -10/Subcaves | Found Prototype Device 1189 | -10/Subcaves | Identified V3-11A's Pendant 1194 | -10/Subcaves | Befriended Subdweller 1208 | -10/Subcaves | Discovered new exit (range 16) 1232 | -10/Subcaves | Curiously followed by a Cobbler waking with a query about "LVR3C" 1464 | -10/Subcaves | Befriended Subdweller 1514 | -10/Subcaves | Befriended Subdweller 1658 | -10/Subcaves | Shifting Twisted Machinery released Barrage Gun 2081 | -10/Subcaves | Identified exit to Recycling 2267 | -10/Subcaves | Shifting Twisted Machinery released Sub. Monowheel 2268 | -10/Subcaves | Shifting Twisted Machinery released Sub. Optics 2314 | -10/Subcaves | Discovered new exit (range 6) 2339 | -10/Subcaves | Befriended Subdweller 2344 | -10/Subcaves | Befriended Subdweller 2386 | -10/Subcaves | Visited Clippyterm 2389 | -10/Subcaves | Learned Research machine intel 2389 | -10/Subcaves | Learned Factory garrison access intel 2424 | -10/Subcaves | Befriended Subdweller 2665 | -10/Subcaves | Learned location of Zion (-7) 2674 | -10/Subcaves | Scientist uncovered a shortcut to Scraptown 3005 | -10/Subcaves | A swath of the cavern ceiling suddenly collapsed 3093 | -10/Subcaves | A swath of the cavern ceiling suddenly collapsed 3354 | -10/Subcaves | Befriended Subdweller 3417 | -10/Subcaves | Visited 4L-MR0's lab 3454 | -10/Subcaves | Befriended Subdweller 3910 | -10/Subcaves | Entered Recycling 3910 | -9/Recycling | Accompanied by 4 allies 3919 | -9/Recycling | Scanned before Scraplab entrance 4133 | -9/Recycling | Discovered new exit (range 14) 4583 | -9/Recycling | Entered Scraplab 4590 | -9/Recycling | Discovered new exit (range 2) 4619 | -9/Recycling | Entered Scraptown 4619 | -9/Scraptown | Accompanied by 2 allies 4769 | -9/Scraptown | Delivered V3-11A's Pendant to T0-NE2 in exchange for information 4811 | -9/Scraptown | System corruption cleaned by C-Scrubber 4942 | -9/Scraptown | Heard Great Nut preacher, LISTEN AND RECITE! 5048 | -9/Scraptown | Discovered new exit (range 6) 5102 | -9/Scraptown | Visited Cyclists 5137 | -9/Scraptown | Visited Red Mages 5364 | -9/Scraptown | Visited Cave Peace 5397 | -9/Scraptown | Visited SPCMW 5483 | -9/Scraptown | Visited Spacefarers 5542 | -9/Scraptown | Visited Fellowship of the Rings 5689 | -9/Scraptown | Visited Shadow of the Wyrm 5726 | -9/Scraptown | Visited UFD Registry 5726 | -9/Scraptown | Registered with UFD as "Matterkit" 5772 | -9/Scraptown | Entered Cyclist Reading Room 5847 | -9/Scraptown | Scanned Subdweller tech in exchange for log data 5850 | -9/Scraptown | Learned Factory terminal intel 5851 | -9/Scraptown | Learned Research non-interactive machine intel 6018 | -9/Scraptown | Guru changed UFD alias to "Flakcore" 6384 | -9/Scraptown | Visited Chapter 10 6437 | -9/Scraptown | Visited Scrapoid Pod Storage 6467 | -9/Scraptown | Visited Sword Containment 6478 | -9/Scraptown | Found Prototype Slashing Weapon 6478 | -9/Scraptown | Identified Companion Sword 6567 | -9/Scraptown | Delivered Scrap Shield to a Scientist 6703 | -9/Scraptown | Visited Junk Cannon Lab 6710 | -9/Scraptown | Found Prototype Special Weapon 6712 | -9/Scraptown | Identified Junk Cannon 6747 | -9/Scraptown | Visited Supply Room 6786 | -9/Scraptown | Visited Junk Repository 6850 | -9/Scraptown | Visited Curators Association 6899 | -9/Scraptown | Visited DA-N13 Charitable Foundation 6909 | -9/Scraptown | Found DCF Scrap (30 items) 6943 | -9/Scraptown | Visited Scrap Suit Storage 6956 | -9/Scraptown | Found Scrap Suit 7011 | -9/Scraptown | Visited Cartography Club 7156 | -9/Scraptown | Found Deep Structural Scanner 7167 | -9/Scraptown | Learned location of Mines (-9) 7167 | -9/Scraptown | Learned location of Testing (-3) 7167 | -9/Scraptown | Learned 12 Factory zone layouts 7167 | -9/Scraptown | Learned 20 Factory zone layouts 7167 | -9/Scraptown | Learned 4 Access zone layouts 7167 | -9/Scraptown | Learned 4 Mines zone layouts 7167 | -9/Scraptown | Learned 16 Lower Caves zone layouts 7167 | -9/Scraptown | Learned 24 Upper Caves zone layouts 7167 | -9/Scraptown | Learned 4 Armory zone layouts 7167 | -9/Scraptown | Learned Factory emergency access door positions 7167 | -9/Scraptown | Learned location of 3 exits from Factory 7167 | -9/Scraptown | Learned location of 2 exits from Research 7167 | -9/Scraptown | Identified exit to Factory 7285 | -9/Scraptown | Met Optimus 7285 | -9/Scraptown | Accepted into 0bPrime 7409 | -9/Scraptown | Entered Factory 7409 | -6/Factory | Accompanied by 2 allies 7409 | -6/Factory | Evolved 8 slots: Propulsion x2, Utility x6 7410 | -6/Factory | Identified exit to Factory 7410 | -6/Factory | Identified exit to Lower Caves 7414 | -6/Factory | Loaded intel: 26 terminal locations 7415 | -6/Factory | Loaded intel: 4 garrison access locations 7522 | -6/Factory | Identified exit to DSF 7553 | -6/Factory | Entered DSF 7553 | -6/DSF | Accompanied by 2 allies 7589 | -6/DSF | Additional patrols routed to DSF 7679 | -6/DSF | Discovered exit to Factory (range 16) 7709 | -6/DSF | Entered Factory 7709 | -5/Factory | Evolved 2 slots: Power x1, Propulsion x1 7710 | -5/Factory | Identified exit to Factory 7710 | -5/Factory | Identified exit to Extension 7728 | -5/Factory | Lost 4 parts (2n2u) 8493 | -5/Factory | Discovered exit to Factory (range 9) 8497 | -5/Factory | Entered another Factory area 8497 | -4/Factory | Evolved 2 slots: Propulsion x1, Utility x1 8527 | -4/Factory | Lost 13 parts (2p6n4u1w) 8692 | -4/Factory | Lost 3 parts (1p1n1u) 8719 | -4/Factory | Discovered new exit (range 11) 8723 | -4/Factory | Entered Upper Caves 8724 | -4/Upper Caves | Identified exit to Upper Caves 8725 | -4/Upper Caves | UFD Scientist delivered a prototype 8729 | -4/Upper Caves | Found Prototype Protection 8729 | -4/Upper Caves | Identified Enh. Scrap Shield 8752 | -4/Upper Caves | Attracted the attention of an 0b10 checkpoint 8832 | -4/Upper Caves | Build established: Hacker-Mutant 8850 | -4/Upper Caves | Found Alien Artifact 8850 | -4/Upper Caves | Identified Dimensional Node Initializer 8850 | -4/Upper Caves | Initialized slip node 8925 | -4/Upper Caves | Entered another Upper Caves area 8978 | -4/Upper Caves | Learned location of Quarantine (-2) 8981 | -4/Upper Caves | Encountered a Warlord checkpoint 9036 | -4/Upper Caves | Prototype Device suddenly appears! 9037 | -4/Upper Caves | Found Prototype Device 9037 | -4/Upper Caves | Identified Amulet of Y3-NDR 9068 | -4/Upper Caves | Joined by bewildered Wizard 9069 | -4/Upper Caves | Joined by bewildered Wizard 9069 | -4/Upper Caves | Joined by bewildered Wizard 9107 | -4/Upper Caves | Joined by bewildered Wizard 9107 | -4/Upper Caves | Joined by bewildered Wizard 9128 | -4/Upper Caves | Joined by bewildered Wizard 9128 | -4/Upper Caves | Joined by bewildered Wizard 9166 | -4/Upper Caves | Discovered new exit (range 16) 9178 | -4/Upper Caves | Joined by bewildered Wizard 9230 | -4/Upper Caves | Entered Research 9230 | -3/Research | Accompanied by 3 allies 9230 | -3/Research | Evolved 2 slots: Utility x2 9231 | -3/Research | Identified exit to Armory 9232 | -3/Research | Identified exit to Research 9232 | -3/Research | Identified exit to Testing 9233 | -3/Research | Loaded intel: 100 machine locations 9234 | -3/Research | Loaded intel: 54 non-interactive machine locations 9468 | -3/Research | Spotted B-86 Titan 9474 | -3/Research | Discovered exit to Testing (range 16) 9478 | -3/Research | Entered Testing 9496 | -3/Testing | Central database locked down 9564 | -3/Testing | Found Fusion Bomb Launcher 9600 | -3/Testing | Found Prototype Device 9600 | -3/Testing | Identified Exp. Thermal Shield 9615 | -3/Testing | Lost 4 parts (1p2n1u) 9639 | -3/Testing | Spotted Striker 9640 | -3/Testing | Spotted Striker 9643 | -3/Testing | Spotted Alpha 7 9646 | -3/Testing | Stole the SGEMP Prototype 9661 | -3/Testing | System corruption reached 10% 9672 | -3/Testing | Core integrity fell below 50% 9691 | -3/Testing | Core integrity fell below 20% 9694 | -3/Testing | Destroyed by P-80 Master with Gamma Rifle Last Messages --------------- 09681_ C-55 Analyst: "UNAUTHORIZED LAB ACCESS." 09682_ Connecting with Regeneration Lab... >>Schematic(Lgt. Regenerative Plating) Downloading schematic... Lgt. Regenerative Plating Rating: 5p Schematic downloaded. >>Schematic(Med. Regenerative Plating) Downloading schematic... Med. Regenerative Plating Rating: 6p Schematic downloaded. 09683_ C-55 Analyst: "REQUESTING IMMEDIATE REINFORCEMENTS." 09684_ System corrupted: Energy discharge (-25). 09684_ Critical hit (Impale). 09687_ Com. HERF Cannon destroyed. 09687_ Imp. System Shield destroyed. 09691_ Dropped Mic. Antimatter Reactor. 09692_ Critical hit (Impale). [Achievement: This Is Interesting...] Map ----- +----------------------------------------------------+ | ?????????????????????????????????????????????????? | | ??????????????????? ???????????????????????????? | | ?????????????????+ ???????????????????????????? | | ?????????????????# ???????????????????????????? | | ?????????????????# #??????????????????????????? | | ?????????????????# #??????????????????????????? | | ?????????????????# #??????????????????????????? | | ?????????????????# #??????????????????????????? | | ???????????####### ###########?#??????????????? | | ???????????? # #?# ?????????????? | | ????????????? # ### ############## | | ??????????????? # """""" +? | | ???????????????? # """""" #???# | | ?????????????????# # """""" !#???# | | ?????????????????# # ##### | | ?????????????????# # ] + | | ?????????????????# + ######## # | | ?????????????????# ###########??????# ## # | | ?????????????????# #????????????????# ## # | | ???????########### #????????????????# ## | | ???????# !# #????????????????# ## | | ???????#"" # #?#"""##?????????# ## | | ???????#"R = # #?#Tc "#?????????####### | | ???????#"" + #?##KK #???????????????# ## | | ???????#[ " """ # ### * #???????????????# # | | ???????# [= """ # @p T#???????????????# # | | ???????# """ # k p #???????????????# # | | ???????# # ########??????????????## # | | ???######+######## #?????????????????????## | | ???# # #??????#######???????### | | ???# + #????? ! #????#### | | ???# # #????? #????# | | ???# # ##### #????# " | | ???# # # #????# "" | | ???# ! ####### + #????# "" | | ???###############?????# # #????# | | ??????#########????????# # #????# ! | | ?????# #????????# #? = #????#/ | | ?????#""" #????????# #? !#????# ] | | ?????#""" ! #????????# #?########????#####+#### | | ?????#""" ###??????# #? #????????# #??# | | ?????#""" #??????# # = #????????# #### | | #????#""" #??????# # #????????# | | #????#""" #??????# + #????????# | | #????#""" #??????# # ! #????????# | | ####?# #??????# # #??????#####+## | | ## ### ! ######### #? #??????# # | | + *! %* #? #??????#""" # | | + ! % = #?? #??????#""" # | | ## "######## # ######+####??#######??????#""" = # | +----------------------------------------------------+ Best States ------------- Heat Dissipation 84 Energy Generation 37 Energy Capacity 315 Matter Stores 300 Matter Capacity 300 Sight Range 21 Terrain Scan Density 10 ECM Strength 2 Jamming Range 14 Additional Mass Support 9 Armor Coverage 800 Resistance: TH 30 Evasion (%) 65 Melee Accuracy 5 Core Analysis 6 Recoil Reduction 2 Offensive Hacking 24 Defensive Hacking 22 Item Schematics ----------------- Sml. Storage Unit | -9/Recycling | Hacked Huge Storage Unit | -9/Recycling | Hacked Signal Interpreter | -9/Recycling | Hacked Field Propulsion Array | -3/Testing | Scanalyzed Lgt. Regenerative Plating | -3/Testing | Hacked Med. Regenerative Plating | -3/Testing | Hacked Robot Schematics ------------------ None Fabricated ------------ Nothing Repaired ---------- Nothing Studied --------- None Alien Tech Used ----------------- Dimensional Node Initializer Achievements -------------- Alien Tech Bob, First Of His Name Longdome?! Loot Taster Nice Directions, Buddy Rodney's Helpers This Is Interesting... Challenges ------------ None Game ------ Seed ColdLauncherAccelerator Manual? 0 Play Time 01:42:37 Cumulative 29.4 hours Start 2026.09.17 @ 15:10:42 End 2026.09.17 @ 16:59:49 Sessions 1 Manual Loads 0 Difficulty Rogue Special Mode None Game No. 33 Rogue 33 Adventurer 0 Explorer 0 Win Type - Total 1 Types 1/0/0/0/0/0/0/0/0/0 Lore% 30 Gallery% 30 Achievement% 29 Wizard Run 0 Options --------- Layout 0 ASCII 0 Keyboard 0 Movement Numpad Keybinds 0 Fullscreen 1 Font 18/Terminus Map View 76x50 Zoom Use 0% Tactical HUD 1 Map Filters NONE Filters NONE Steam 1 RUN: ae5afef5-e7d5-46d6-ae0f-0cc4ca76e0df